{"text_format":"1","workbook":"xlsx","n_sheets":1,"sheets":["Пр.№4"],"not_rendered":{"charts":0,"images":0,"macros":0,"external_links":0,"defined_names":2,"comments":0,"pivot_tables":0},"unopened":[],"bounds":{"document_bytes":16777216,"sheet_cells":100000,"rows_first":2000,"rows_last":500,"rows_between":2000,"halvings":0,"cell_chars":16384,"cell_head_chars":4096},"cells_cut":0,"cells_raw":0,"read":"whole","date_system":"1900"}

{"sheet":"Пр.№4","index":0,"n_rows":232,"n_cols":12,"rows_kept":232,"cut":false,"hidden":false,"merged":[[5,2,5,9],[16,7,16,9],[6,2,6,9],[233,5,233,9],[13,0,13,9],[14,0,14,9],[11,0,11,9],[12,0,12,9]]}
[]
[]
[null,null,null,null,"  ","Приложение №2"]
[null,null,"к  Решению Совета депутатов Борковского сельского поселения"]
[null,null," \" Об утверждении годового отчета за 2016 год Борковского сельского  "]
[null,null,"поселения \" от  2017 №"]
[]
[]
[]
[]
[]
[]
["Ведомственная  структура расходов бюджета Борковского сельского поселения"]
[" за 2016 год"]
[]
[null,null,null,null,null,null,null,null,null,"(тыс. рублей)"]
["Наименование",null,"Мин","Рз","ПР","ЦСР","ВР","Сумма",null,null,"2009 год","2010 год"]
["Администрация Борковского сельского поселения",null,"335",null,null,null,null,"план","факт","% исполнения"]
[]
["Общегосударственные вопросы",null,"335","01",null,null,null,{"$f":"H23+H36+H76+H86+H91","v":4432.8999999999996},{"$f":"I23+I36+I76+I86+I91","v":4425.7},"100,16",{"$f":"K23+#REF!+#REF!+K36+#REF!++#REF!+#REF!+#REF!+#REF!","v":{"$error":"#REF!"}},{"$f":"L23+#REF!+#REF!+L36+#REF!++#REF!+#REF!+#REF!+#REF!","v":{"$error":"#REF!"}}]
["Функционирование высшего должностного лица "]
["субъекта Российской Федерации и  "]
["муниципального образования",null,"335",{"$f":"D$20","v":"01"},"02",null,null,{"$f":"H27","v":670.1},{"$f":"I27","v":670.1},{"$f":"H23/I23*100","v":100},{"$f":"#REF!","v":{"$error":"#REF!"}},{"$f":"#REF!","v":{"$error":"#REF!"}}]
["Руководство и управление в сфере установленных функций  "]
["органов государственной власти субъектов Российской"]
["Федерации и органов местного самоуправления",null,"335","01","02","20 1 00 00000",null,{"$f":"H27","v":670.1},{"$f":"I27","v":670.1},100]
["Глава муниципального образования",null,"335",{"$f":"D$20","v":"01"},{"$f":"E$23","v":"02"},"20 1 00 01000",null,{"$f":"H28+H31+H32","v":670.1},{"$f":"I28+I31+I32","v":670.1},100,{"$f":"K28","v":707},{"$f":"L28","v":724}]
["Фонд оплаты труда государственных (муниципальных) органов",null,"335",{"$f":"D$20","v":"01"},{"$f":"E$23","v":"02"},"20 1 00 01000","121",467,467,100,707,724]
["Взносы по обязательном у социальному страхованию на выплаты"]
["денежного содержания и иные выплаты работникам"]
["государственных (муниципальных) органов",null,"335","01","02","20 1 00 01000","129",163,163,100]
["Иные выплаты персоналу, за исключением фонда оплаты труда",null,"335",{"$f":"D$20","v":"01"},{"$f":"E$23","v":"02"},"20 1 00 01000","122",40.1,40.1,100]
["Функционирование Правительства Российской "]
["Федерации, высших исполнительных органов"]
["государственной власти субъектов Российской  "]
["Федерации, местных администраций",null,"335",{"$f":"D$20","v":"01"},"04",null,null,{"$f":"H38+H58+H71","v":3540.7999999999993},{"$f":"I38+I58+I71","v":3534.5999999999995},"100,18",{"$f":"#REF!","v":{"$error":"#REF!"}},{"$f":"#REF!","v":{"$error":"#REF!"}}]
["Расходы на содержание аппарата органов местного ",null,null,null,null,null,null,null,null,null,{"$f":"#REF!","v":{"$error":"#REF!"}},{"$f":"#REF!","v":{"$error":"#REF!"}}]
["самоуправления",null,"335",{"$f":"D$20","v":"01"},{"$f":"E36","v":"04"},"20 2 00 00000",null,{"$f":"H39+H43+H46+H45+H42+H55+H56+H57+H54","v":3383.9999999999995},{"$f":"I39+I42+I43+I45+I46+I54+I55+I56+I57","v":3377.7999999999997},"100,18"]
["Фонд оплаты труда государственных (муниципальных) органов",null,"335",{"$f":"D$20","v":"01"},"04","20 2 00 01000","121",1707.8,1707.8,100]
["Взносы по обязательном у социальному страхованию на выплаты"]
["денежного содержания и иные выплаты работникам"]
["государственных (муниципальных) органов",null,"335","01","04","20 2 00 01000","129",520.79999999999995,520.79999999999995,100]
["Иные выплаты персоналу, за исключением фонда оплаты труда",null,"335",{"$f":"D$20","v":"01"},"04","20 2 00 01000","122",81.599999999999994,81.599999999999994,100]
["Закупка товаров, работ, услуг в области информационных"]
[" технологий ",null,"335","01","04","20 2 00 01000","242",298.10000000000002,298.10000000000002,100]
["Прочая закупка товаров,работ и услуг для муниципальных нужд",null,"335",{"$f":"D$20","v":"01"},{"$f":"E36","v":"04"},"20 2 00 01000","244",706.3,700.1,"100,89"]
["Областной резервный фонд на ликвидацию угрозы и",null,null,null,null,null,null,null,null,{"$error":"#DIV/0!"}]
["последствий чрезвычайных ситуаций",null,null,{"$f":"D$20","v":"01"},{"$f":"#REF!","v":{"$error":"#REF!"}},{"$f":"#REF!","v":{"$error":"#REF!"}},null,{"$f":"H49","v":0},null,{"$error":"#DIV/0!"},{"$f":"K49","v":0},{"$f":"L49","v":0}]
["Прочие расходы",null,null,{"$f":"D$20","v":"01"},{"$f":"#REF!","v":{"$error":"#REF!"}},{"$f":"#REF!","v":{"$error":"#REF!"}},"013",{"$f":"3317-3317","v":0},null,{"$error":"#DIV/0!"},{"$f":"3543-3543","v":0},{"$f":"3773-3773","v":0}]
["Исполнение судебных актов РФ и мировых соглашений по возме"]
["щению вреда, причиненного в результате незаконных действий"]
["(бездействий) органов государственной власти либо должностных "]
["лиц этих органов, а также в результате деятельности казенных "]
["учреждений",null,"335","01","04","20 2 00 01000","831",4,4,100]
["Уплата налога на имущество организаций",null,"335",{"$f":"D$20","v":"01"},"04","20 2 00 01000","851",2,2,100]
["Уплата прочих налогов, сборов и иных обязательных платежей",null,"335",{"$f":"D$20","v":"01"},"04","20 2 00 01000","852",3.3,3.3,100]
["Уплата иных платежей",null,"335",{"$f":"D$20","v":"01"},"04","20 2 00 01000","853",60.1,60.1,100]
["Субвенция на возмещению затрат по содержанию штатных ",null,"335","01","04","20 2 00 70280",null,{"$f":"H63+H67+H66","v":151.69999999999999},{"$f":"I63+I67+I66","v":151.69999999999999},100]
["единиц, осуществляющих переданные отдельные государствен- "]
["ные полномочия области по организации деятельности по сбору "]
["( в том числе раздельному сбору) и транспортированию твердых"]
["коммунальных отходов городских и сельских поселений"]
["Фонд оплаты труда государственных (муниципальных) органов",null,"335","01","04","20 2 00 70280","121",111.6,111.6,100]
["Взносы по обязательном у социальному страхованию на выплаты"]
["денежного содержания и иные выплаты работникам"]
["государственных (муниципальных) органов",null,"335","01","04","20 2 00 70280","129",32.6,32.6,100]
["Прочая закупка товаров,работ и услуг для муниципальных нужд",null,"335","01","04","20 2 00 70280","244",7.5,7.5,100]
["Иные межбюджетные трансферты городским и сельским "]
["поселениям области на частичную компенсацию дополни"]
["тельных расходов на повышение оплаты труда работников "]
["бюджетной сферы",null,"335","01","04","20 2 00 71420",null,5.0999999999999996,5.0999999999999996,100]
["Фонд оплаты труда государственных (муниципальных) органов",null,"335","01","04","20 2 00 71420","121",3.9,3.9,100]
["Взносы по обязательном у социальному страхованию на выплаты"]
["денежного содержания и иные выплаты работникам"]
["государственных (муниципальных) органов",null,"335","01","04","20 2 00 71420","129",1.2,1.2,100]
["Обеспечение деятельности финансовых, налоговых ",null,"335","01","06",null,null,{"$f":"+H84","v":"217,0"},{"$f":"+I84","v":"217,0"},100]
["и таможенных органов и органов финансового (финансово-"]
["бюджетного) надзора "]
["Межбюджетные трансферты бюджету муниципального района",null,"335","01","06","20 4 00 00000",null,{"$f":"H84","v":"217,0"},{"$f":"I84","v":"217,0"},100]
["Иные межбюджетные трансферты из бюджетов поселений"]
["бюджету муниципального района на возмещение затрат по "]
["содержанию штатных единиц,осуществляющих переданные"]
["полномочия поселения по внешнему муниципальному"]
["финансовому контролю",null,"335","01","06","20 4 00 93020",null,{"$f":"+H85","v":"217,0"},{"$f":"+I85","v":"217,0"},100]
["Иные межбюджетные трансферты ",null,"335","01","06","20 4 00 93020","540","217,0","217,0",{"$f":"H85/I85*100","v":100}]
["Резервные фонды",null,"335","01","11",null,null,{"$f":"H89","v":1},"0,00"]
["Прочие непрограммные расходы",null,"335","01","11","20 5 00 00000",null,1,"0,00"]
["Резервные фонды  местных администраций ",null,"335","01","11","20 5 00 25030",null,1,"0,00"]
["Резервные средства",null,"335","01","11","20 5 00 25030","870",{"$f":"H88","v":1},"0,00"]
[null,null,null,null,null,null,null,null,null,{"$error":"#DIV/0!"}]
["Другие общегосударственные вопросы",null,"335","01","13",null,null,4,4,100]
["Прочие непрограммные расходы",null,"335","01","13","20 5 00 00000",null,{"$f":"H93","v":4},{"$f":"I93","v":4},100]
["Содержание и обслуживание казны муниципального образования",null,"335","01","13","20 5 00 25150",null,4,4,100]
["Прочая закупка товаров,работ и услуг для муниципальных нужд",null,"335","01","13","20 5 00 25150","244",4,4,100]
["Национальная оборона",null,"335","02",null,null,null,{"$f":"+H96","v":178},{"$f":"+I96","v":178},100]
["Мобилизационная и вневойсковая подготовка",null,"335","02","03",null,null,{"$f":"+H98","v":178},{"$f":"+I98","v":178},100]
["Прочие непрограммные расходы",null,"335","02","03","20 5 00 00000",null,{"$f":"H98","v":178},{"$f":"I98","v":178},100]
["Осуществление первичного воинского учета на",null,"335","02","03","20 5 00 51180",null,{"$f":"H100+H104+H103","v":178},{"$f":"I100+I104+I103","v":178},100]
["территории,где отсутствуют воинские комиссариаты"]
["Фонд оплаты труда государственных (муниципальных) органов",null,"335","02","03","20 5 00 51180","121",129.69999999999999,129.69999999999999,100]
["Взносы по обязательном у социальному страхованию на выплаты"]
["денежного содержания и иные выплаты работникам"]
["государственных (муниципальных) органов",null,"335","02","03","20 5 00 51180","129",39.200000000000003,39.200000000000003,100]
["Прочая закупка товаров, работ и услуг для муниципальных нужд",null,"335","02","03","20 5 00 51180","244",9.1,9.1,100]
["Национальная безопасность и ",null,"335","03",null,null,null,{"$f":"H113+H109","v":144},{"$f":"I113+I109","v":144},100]
["правоохранительная деятельность"]
["Защита населения и территории от чрезвычайных ситуаций"]
["природного и техногенного характера, гражданская оборона",null,"335","03","09"]
["Прочие непрограмные расходы",null,"335","03","09","20 5 00 00000",null,{"$f":"H111","v":28.5},{"$f":"I111","v":28.5},100]
["Расходы на выполнение работ по разработке расчета размера вреда"]
["для физических и юридических лиц",null,"335","03","09","20 5 00 14020",null,{"$f":"H112","v":28.5},{"$f":"I112","v":28.5},100]
["Прочая закупка товаров,работ и услуг для муниципальных нужд",null,"335","03","09","20 5 00 14020","244",28.5,28.5,100]
["Обеспечение пожарной безопасности",null,"335","03","10",null,null,{"$f":"+H115","v":115.5},{"$f":"+I115","v":115.5},100,{"$f":"#REF!+#REF!+K115+#REF!","v":{"$error":"#REF!"}},{"$f":"#REF!+#REF!+L115+#REF!","v":{"$error":"#REF!"}}]
["Муниципальная программа  \"Устойчивое развитие территории "]
[" Борковского сельского поселения на 2014-2016гг.\"",null,"335","03","10","01 0 00 00000",null,{"$f":"H116","v":115.5},{"$f":"I116","v":115.5},100,{"$f":"#REF!+K116+#REF!","v":{"$error":"#REF!"}},{"$f":"#REF!+L116+#REF!","v":{"$error":"#REF!"}}]
["Мероприятия в области противопожарной безопасности",null,"335",{"$f":"D$113","v":"03"},"10","01 0 00 25110",null,{"$f":"H117","v":115.5},{"$f":"I117","v":115.5},100,{"$f":"K117","v":{"$error":"#REF!"}},{"$f":"L117","v":{"$error":"#REF!"}}]
["Прочая закупка товаров,работ и услуг для муниципальных нужд",null,"335",{"$f":"D$113","v":"03"},"10","01 0 00 25110","244",115.5,115.5,100,{"$f":"#REF!","v":{"$error":"#REF!"}},{"$f":"#REF!","v":{"$error":"#REF!"}}]
["привлеченным кредитам в российских кредитных",null,null,null,null,null,null,null,null,{"$error":"#DIV/0!"}]
["организациях на развитие животноводства",null,null,null,null,null,null,null,null,{"$error":"#DIV/0!"}]
["Субсидирование процентных ставок по ",null,null,{"$f":"#REF!","v":{"$error":"#REF!"}},{"$f":"#REF!","v":{"$error":"#REF!"}},{"$f":"#REF!","v":{"$error":"#REF!"}},"356",null,null,{"$error":"#DIV/0!"}]
["привлеченным кредитам в российских кредитных",null,null,null,null,null,null,null,null,{"$error":"#DIV/0!"}]
["организациях на развитие малых форм ",null,null,null,null,null,null,null,null,{"$error":"#DIV/0!"}]
["хозяйствования в агропромышленном комплексе",null,null,null,null,null,null,null,null,{"$error":"#DIV/0!"}]
["Субсидирование части затрат на приобретение",null,null,{"$f":"#REF!","v":{"$error":"#REF!"}},{"$f":"#REF!","v":{"$error":"#REF!"}},{"$f":"#REF!","v":{"$error":"#REF!"}},"357",null,null,{"$error":"#DIV/0!"}]
["дизельного топлива, использованного на ",null,null,null,null,null,null,null,null,{"$error":"#DIV/0!"}]
["проведение сезонных сельскохозяйственных работ",null,null,null,null,null,null,null,null,{"$error":"#DIV/0!"}]
["Субсидирование процентных ставок по кредитам, ",null,null,{"$f":"#REF!","v":{"$error":"#REF!"}},{"$f":"#REF!","v":{"$error":"#REF!"}},{"$f":"#REF!","v":{"$error":"#REF!"}},"355",null,null,{"$error":"#DIV/0!"}]
["полученным в российских кредитных организациях ",null,null,null,null,null,null,null,null,{"$error":"#DIV/0!"}]
["на развитие животноводства и промышленного ",null,null,null,null,null,null,null,null,{"$error":"#DIV/0!"}]
["рыбоводства",null,null,null,null,null,null,null,null,{"$error":"#DIV/0!"}]
["Субсидирование процентных ставок по кредитам, ",null,null,{"$f":"#REF!","v":{"$error":"#REF!"}},{"$f":"#REF!","v":{"$error":"#REF!"}},{"$f":"#REF!","v":{"$error":"#REF!"}},"356",null,null,{"$error":"#DIV/0!"}]
["полученным в российских кредитных организациях, ",null,null,null,null,null,null,null,null,{"$error":"#DIV/0!"}]
["и займам, полученным в сельскохозяйственных",null,null,null,null,null,null,null,null,{"$error":"#DIV/0!"}]
["кредитных потребительских кооперативах, ",null,null,null,null,null,null,null,null,{"$error":"#DIV/0!"}]
["на развитие малых форм хозяйствования в",null,null,null,null,null,null,null,null,{"$error":"#DIV/0!"}]
["агропромышленном комплексе",null,null,null,null,null,null,null,null,{"$error":"#DIV/0!"}]
["Субсидии на поддержку племенного ",null,null,{"$f":"#REF!","v":{"$error":"#REF!"}},{"$f":"#REF!","v":{"$error":"#REF!"}},{"$f":"#REF!","v":{"$error":"#REF!"}},"357",null,null,{"$error":"#DIV/0!"}]
["животноводства",null,null,null,null,null,null,null,null,{"$error":"#DIV/0!"}]
["Возмещение части затрат на уплату процентов",null,null,{"$f":"#REF!","v":{"$error":"#REF!"}},{"$f":"#REF!","v":{"$error":"#REF!"}},{"$f":"#REF!","v":{"$error":"#REF!"}},"627",null,null,{"$error":"#DIV/0!"}]
["по кредитам, полученным на срок до пяти лет",null,null,null,null,null,null,null,null,{"$error":"#DIV/0!"}]
["в российских кредитных организациях ",null,null,null,null,null,null,null,null,{"$error":"#DIV/0!"}]
["на приобретение племенного скота, племенного",null,null,null,null,null,null,null,null,{"$error":"#DIV/0!"}]
["материала рыб, техники и оборудования",null,null,null,null,null,null,null,null,{"$error":"#DIV/0!"}]
["для животноводческих комплексов и организаций,",null,null,null,null,null,null,null,null,{"$error":"#DIV/0!"}]
["осуществляющих промышленное рыбоводство",null,null,null,null,null,null,null,null,{"$error":"#DIV/0!"}]
["Национальная экономика",null,null,{"$f":"#REF!","v":{"$error":"#REF!"}},{"$f":"#REF!","v":{"$error":"#REF!"}},{"$f":"#REF!","v":{"$error":"#REF!"}},"628",null,null,{"$error":"#DIV/0!"}]
["Национальная экономика",null,"335","04",null,null,null,{"$f":"H148","v":1931.7},{"$f":"I148","v":1931.7},100]
["Дорожное хозяйство(дорожные фонды)",null,"335","04","09",null,null,{"$f":"H151+H155+H158","v":1931.7},{"$f":"I151+I155+I158","v":1931.7},100]
["Муниципальная программа  \"Устойчивое развитие территории "]
[" Борковского сельского поселения на 2014-2016гг.\"",null,"335","04","09","01 0 00 00000",null,{"$f":"H151+H155+H158","v":1931.7},{"$f":"I151+I155+I158","v":1931.7},{"$f":"H150/I150*100","v":100}]
["Капитальный ремонт и ремонт автомобильных дорог общего пользования ",null,"335","04","09","01 0 00 S5170",null,{"$f":"H153","v":658.6},{"$f":"I153","v":658.6},100]
["пользования местного значения в границах населенных пунктов "]
["Прочая закупка товаров,работ и услуг для муниципальных нужд",null,"335","04","09","01 0 00 S5170","244",658.6,658.6,100]
["Содержание автомобильных дорог общего пользования "]
["местного значения в границах населенных пунктов",null,"335","04","09","01 0 00 25160",null,{"$f":"H156","v":150.1},{"$f":"I156","v":150.1},100]
["Прочая закупка товаров,работ и услуг для муниципальных нужд",null,"335","04","09","01 0 00 25160","244",150.1,150.1,100]
["Осуществление дорожной деятельности в отношении "]
["автомобильных дорог общего пользования местного значения",null,"335","04","09","01 0 01 71520",null,{"$f":"H159","v":1123},{"$f":"I159","v":1123},100]
["Прочая закупка товаров,работ и услуг для муниципальных нужд",null,"335","04","09","01 0 01 71520","244",1123,1123,100]
["Жилищно-коммунальное хозяйство",null,"335","05",null,null,null,{"$f":"H161+H168","v":2656.7000000000003},{"$f":"I161+I168","v":2656.7000000000003},100]
["Коммунальное хозяйство",null,"335","05","02",null,null,{"$f":"+H166","v":337.5},{"$f":"+I166","v":337.5},100]
["Муниципальная программа  \"Устойчивое развитие территории "]
[" Борковского сельского поселения на 2014-2016гг.\"",null,"335","05","02","01 0 00 00000",null,{"$f":"H166","v":337.5},{"$f":"I166","v":337.5},100]
["Компенсация выпадающих доходов организациям,"]
["предоставляющим населению услуги "]
["общественных бань ",null,"335","05","02","01 0 00 62200",null,{"$f":"H167","v":337.5},{"$f":"I167","v":337.5},100]
["Субсидии юридическим лицам",null,"335","05","02","01 0 00 62200","810",337.5,337.5,100]
["Благоустройство",null,"335","05","03",null,null,{"$f":"H172+H175+H178","v":2319.2000000000003},{"$f":"I172+I175+I178","v":2319.2000000000003},100]
["Муниципальная программа  \"Устойчивое развитие территории "]
[" Борковского сельского поселения на 2014-2016гг.\"",null,"335","05","03","01 0 00 00000",null,{"$f":"H172+H175+H178","v":2319.2000000000003},{"$f":"I172+I175+I178","v":2319.2000000000003},100]
["Организация уличного освещения с использованием ",null,null,null,null,null,null,null,null,null,{"$f":"#REF!","v":{"$error":"#REF!"}},{"$f":"#REF!","v":{"$error":"#REF!"}}]
["новых технологий",null,"335","05","03","01 0 00 25190",null,{"$f":"H174","v":2087},{"$f":"I174","v":2087},100]
["Прочая закупка товаров,работ и услуг для муниципальных"]
["нужд",null,"335","05","03","01 0 00 25190","244",2087,2087,100]
["Организация и содержание мест захоронения ",null,"335","05","03","01 0 00 25220",null,{"$f":"H177","v":148.4},{"$f":"I177","v":148.4},100]
["Прочая закупка товаров,работ и услуг для муниципальных"]
["нужд",null,"335","05","03","01 0 00 25220","244",148.4,148.4,100,{"$f":"K178","v":{"$error":"#REF!"}},{"$f":"L178","v":{"$error":"#REF!"}}]
["Прочие мероприятия по благоустройству",null,"335","05","03","01 0 00 25230",null,{"$f":"H180","v":83.8},{"$f":"I180","v":83.8},100,{"$f":"#REF!","v":{"$error":"#REF!"}},{"$f":"#REF!","v":{"$error":"#REF!"}}]
["Прочая закупка товаров,работ и услуг для муниципальных"]
["нужд",null,"335","05","03","01 0 00 25230","244",83.8,83.8,100]
["Образование",null,"335","07",null,null,null,{"$f":"H182+H186","v":17.2},{"$f":"I182+I186","v":17.2},100]
["Молодежная политика и оздоровление детей",null,"335","07","07",null,null,{"$f":"H183","v":4},{"$f":"I183","v":4},100]
["Прочие непрограммные расходы",null,"335","07","07","20 5 00 00000",null,4,{"$f":"I184","v":4},100]
["Реализация  мероприятий для детей и молодежи",null,"335","07","07","20 5 00 25090",null,4,{"$f":"I185","v":4},100,{"$f":"K185","v":{"$error":"#REF!"}},{"$f":"L185","v":{"$error":"#REF!"}}]
["Прочая закупка товаров,работ и услуг для муниципальных нужд",null,"335","07","07","20 5 00 25090","244",4,4,100,{"$f":"#REF!+#REF!","v":{"$error":"#REF!"}},{"$f":"#REF!+#REF!","v":{"$error":"#REF!"}}]
["Другие вопросы в области образования",null,"335","07","09",null,null,{"$f":"H192+H198","v":13.2},{"$f":"I192+I198","v":13.2},100]
["Прочие непрограммные расходы",null,"335","07","09","20 5 00 00000",null,{"$f":"H192+H198","v":13.2},{"$f":"I192+I198","v":13.2},100]
["Мероприятия на организацию профессионального  "]
[" образования и дополнительного профессионального"]
["образования выборных должностных лиц,"]
["муниципальных служащих и служащих городских и сельских "]
["поселений",null,"335","07","09","20 5 00 S5370",null,{"$f":"H193","v":3.8},{"$f":"I193","v":3.8},100]
["Прочая закупка товаров,работ и услуг для муниципальных нужд",null,"335","07","09","20 5 00 S5370","244",3.8,3.8,100]
["Субсидии бюджетам муниципальных районов и городского   "]
["округа на организацию профессионального образования"]
["и дополнительного профессионального образования "]
["выборных должностных лиц, служащих и муниципальных "]
["служащих Новгородской области",null,"335","07","09","20 5 00 72280",null,9.4,9.4,100]
["Прочая закупка товаров,работ и услуг для муниципальных нужд",null,"335","07","09","20 5 00 72280","244",9.4,9.4,100]
["Культура, кинематография, средства "]
["массовой информации",null,"335","08",null,null,null,{"$f":"H202","v":2390},{"$f":"I202","v":2390},100]
["Культура",null,"335","08","01",null,null,{"$f":"H205+H210+H215","v":2390},{"$f":"I205+I210+I215","v":2390},100,{"$f":"#REF!+#REF!+#REF!+#REF!","v":{"$error":"#REF!"}},{"$f":"#REF!+#REF!+#REF!+#REF!","v":{"$error":"#REF!"}}]
["Прочие непрограммные расходы",null,"335","08","01","20 5 00 00000",null,{"$f":"H205+H210+H215","v":2390},{"$f":"I205+I210+I215","v":2390},100]
["Расходы на обеспечение деятельности (оказание услуг) "]
["муниципальных учреждений",null,"335",{"$f":"D$202","v":"08"},"01","20 5 00 14000",null,{"$f":"H209","v":2334.4},{"$f":"I209","v":2334.4},100]
["Обеспечение деятельности  подведомственных учреждений",null,"335","08","01","20 5 00 14010",null,{"$f":"+H209","v":2334.4},{"$f":"+I209","v":2334.4},100]
["Субсидии автономным учреждениям на финансовое обеспечение"]
["муниципального задания на оказание муниципальных услуг"]
[" (выполнение работ)",null,"335","08","01","20 5 00 14010","621",2334.4,2334.4,100]
["Мероприятия в области культуры",null,"335","08","01","20 5 00 25050",null,{"$f":"H211","v":2},{"$f":"I211","v":2},100]
["Прочая закупка товаров,работ и услуг для муниципальных нужд",null,"335",{"$f":"D$202","v":"08"},{"$f":"E205","v":"01"},"20 5 00 25050","244",2,2,100,{"$f":"#REF!","v":{"$error":"#REF!"}},{"$f":"#REF!","v":{"$error":"#REF!"}}]
["Иные межбюджетные трансферты городским и сельским "]
["поселениям области на частичную компенсацию дополнитель"]
["ных расходов на повышение оплаты труда работников "]
["бюджетной сферы",null,"335",{"$f":"D$202","v":"08"},{"$f":"E209","v":"01"},"20 5 00 71420",null,53.6,53.6,{"$f":"H215/I215*100","v":100}]
["Субсидии автономным учреждениям на финансовое "]
["обеспечение муниципального задания на оказание "]
["муниципальных услуг (выполнение работ)",null,"335",{"$f":"D$202","v":"08"},{"$f":"E211","v":"01"},"20 5 00 71420","621",53.6,53.6,100]
["Социальная политика",null,"335","10",null,null,null,{"$f":"H220","v":235.3},{"$f":"I220","v":235.3},100]
["Пенсионное обеспечение ",null,"335","10","01",null,null,{"$f":"H221","v":235.3},{"$f":"I221","v":235.3},100]
["Прочие непрограммные расходы",null,"335","10","01","20 5 00 00000",null,{"$f":"H223","v":235.3},{"$f":"I223","v":235.3},100]
["Доплаты к пенсиям муниципальных служащих, служащих, "]
["замещавших муниципальные должности",null,"335","10","01","20 5 00 82100",null,{"$f":"+H224","v":235.3},{"$f":"+I224","v":235.3},100]
["Иные пенсии, социальные доплаты к пенсиям",null,"335","10","01","20 5 00 82100","312",235.3,235.3,100]
["Физическая культура и спорт",null,"335","11",null,null,null,{"$f":"H226","v":33},{"$f":"I226","v":33},100]
["Физическая культура ",null,"335","11","01",null,null,{"$f":"+H228","v":33},{"$f":"+I228","v":33},100,{"$f":"#REF!+#REF!+#REF!+#REF!+#REF!+#REF!+#REF!","v":{"$error":"#REF!"}},{"$f":"#REF!+#REF!+#REF!+#REF!+#REF!+#REF!+#REF!","v":{"$error":"#REF!"}}]
["Прочие непрограммные расходы",null,"335","11","01","20 5 00 00000",null,33,33,100]
["Мероприятия в области физической культуры и спорта",null,"335",{"$f":"D$226","v":"11"},"01","20 5 00 25100",null,{"$f":"H229","v":33},{"$f":"I229","v":33},100,{"$f":"14337+884","v":15221},{"$f":"15266+938","v":16204}]
["Прочая закупка товаров,работ и услуг для муниципальных нужд",null,"335",{"$f":"D$226","v":"11"},"01","20 5 00 25100","244",33,33,100]
[null,null,null,null,null,null,null,null,null,null,{"$f":"#REF!","v":{"$error":"#REF!"}},{"$f":"#REF!","v":{"$error":"#REF!"}}]
["ВСЕГО РАСХОДОВ:",null,null,null,null,null,null,{"$f":"H20+H95+H113+H147+H160+H201+H225+H181+H219+H109","v":12018.8},{"$f":"I20+I95+I105+I147+I160+I181+I201+I219+I225","v":12011.6},"100,06"]
[null,null,null,null,null,null,null,null,null," ",{"$f":"K20+K113+#REF!+#REF!+#REF!+#REF!+K202+K226+#REF!+#REF!+#REF!","v":{"$error":"#REF!"}},{"$f":"L20+L113+#REF!+#REF!+#REF!+#REF!+L202+L226+#REF!+#REF!+#REF!","v":{"$error":"#REF!"}}]